fUST/lending_fUST_20250713
["ID","MTS","AMOUNT","RATE_DAILY","PERIOD"]
[371535910,1752340260405,-460.0,0.00020273,2]
[371535911,1752340260414,-478.89,0.00020273,2]
[371535912,1752340260423,-460.0,0.00020273,2]
[371535913,1752340260433,-474.34,0.00020273,2]
[371535914,1752340260442,-2619.32,0.00020273,2]
[371535915,1752340260452,-782.78,0.00020273,2]
[371535916,1752340260461,-460.0,0.00020273,2]
[371535917,1752340260470,-545.43,0.00020273,2]
[371535918,1752340260480,-524.08,0.00020273,2]
[371535919,1752340260489,-4243.61,0.00020273,2]
[371535920,1752340260498,-613.83,0.00020273,2]
[371535921,1752340260522,-460.0,0.00020273,2]
[371535922,1752340260533,-460.0,0.00020273,2]
[371535923,1752340260542,-2647.84,0.00020273,2]
[371535924,1752340260551,-460.0,0.00020273,2]
[371535925,1752340260560,-1117.83,0.00020273,2]
[371535926,1752340260569,-577.08,0.00020273,2]
[371535927,1752340260577,-1257.51,0.00020273,2]
[371535928,1752340260588,-460.0,0.00020273,2]
[371535929,1752340260597,-460.0,0.00020273,2]
[371535930,1752340260605,-460.0,0.00020273,2]
[371535931,1752340260615,-534.6,0.00020273,2]
[371535932,1752340260624,-460.0,0.00020273,2]
[371535933,1752340260633,-1137.93,0.00020273,2]
[371535934,1752340260642,-1616.2,0.00020273,2]
[371535935,1752340260652,-584.27,0.00020273,2]
[371535936,1752340260661,-1361.32,0.00020273,2]
[371535937,1752340260671,-460.0,0.00020273,2]
[371535938,1752340260682,-1001.32,0.00020273,2]
[371535939,1752340260692,-460.0,0.00020273,2]
[371535940,1752340260702,-316.74,0.00020273,2]
[371535941,1752340260711,-460.0,0.00020273,2]
[371535942,1752340260722,-691.13,0.00020273,2]
[371535943,1752340260731,-587.01,0.00020273,2]
[371535944,1752340260741,-571.27,0.00020273,2]
[371535945,1752340260751,-2375.75,0.00020273,2]
[371535946,1752340260760,-460.0,0.00020273,2]
[371535947,1752340260770,-460.0,0.00020273,2]
[371535948,1752340260780,-2131.7,0.00020273,2]
[371535949,1752340260789,-460.0,0.00020273,2]
[371535950,1752340260799,-460.0,0.00020273,2]
[371535951,1752340260809,-995.99,0.00020273,2]
[371535952,1752340260818,-473.04,0.00020273,2]
[371535953,1752340260828,-460.0,0.00020273,2]
[371535954,1752340260839,-741.754,0.00020276,2]
[371535955,1752340260849,-178.092,0.00020276,2]
[371535956,1752340260859,-1969.20307314,0.00020314,3]
[371535957,1752340260869,-455.26477289,0.00020412,4]
[371535958,1752340260878,-455.26477289,0.00020412,4]
[371535959,1752340260888,-4162.17,0.000205,2]
[371535960,1752340260897,-460.0,0.00020547,2]
[371535961,1752340260907,-460.0,0.00020547,2]
[371535962,1752340260917,-474.05,0.00020547,2]
[371535963,1752340260928,-460.0,0.00020547,2]
[371535964,1752340260937,-478.89,0.00020547,2]
[371535965,1752340260948,-460.0,0.00020547,2]
[371535966,1752340260957,-474.34,0.00020547,2]
[371535967,1752340260966,-2619.32,0.00020547,2]
[371535968,1752340260976,-782.78,0.00020547,2]
[371535969,1752340260986,-460.0,0.00020547,2]
[371535970,1752340260996,-545.43,0.00020547,2]
[371535971,1752340261005,-524.08,0.00020547,2]
[371535972,1752340261015,-4243.61,0.00020547,2]
[371535973,1752340261025,-613.83,0.00020547,2]
[371535974,1752340261034,-460.0,0.00020547,2]
[371535975,1752340261044,-460.0,0.00020547,2]
[371535976,1752340261053,-2647.84,0.00020547,2]
[371535977,1752340261063,-460.0,0.00020547,2]
[371535978,1752340261072,-1117.83,0.00020547,2]
[371535979,1752340261082,-577.08,0.00020547,2]
[371535980,1752340261091,-1257.51,0.00020547,2]
[371535981,1752340261101,-460.0,0.00020547,2]
[371535982,1752340261110,-460.0,0.00020547,2]
[371535983,1752340261120,-460.0,0.00020547,2]
[371535984,1752340261129,-534.6,0.00020547,2]
[371535985,1752340261139,-460.0,0.00020547,2]
[371535986,1752340261149,-1137.93,0.00020547,2]
[371535987,1752340261159,-1616.2,0.00020547,2]
[371535988,1752340261169,-584.27,0.00020547,2]
[371535989,1752340261180,-1361.32,0.00020547,2]
[371535990,1752340261192,-460.0,0.00020547,2]
[371535991,1752340261203,-1001.32,0.00020547,2]
[371535992,1752340261212,-460.0,0.00020547,2]
[371535993,1752340261222,-280.81398059,0.00020547,2]
[371535994,1752340261233,-691.13,0.00020547,2]
[371535995,1752340261243,-587.01,0.00020547,2]
[371535996,1752340261253,-571.27,0.00020547,2]
[371535997,1752340261263,-2375.75,0.00020547,2]
[371535998,1752340261275,-460.0,0.00020547,2]
[371535999,1752340261284,-460.0,0.00020547,2]
[371536000,1752340261299,-2131.7,0.00020547,2]
[371536001,1752340261309,-460.0,0.00020547,2]
[371536002,1752340261319,-460.0,0.00020547,2]
[371536003,1752340261329,-995.99,0.00020547,2]
[371536004,1752340261340,-473.04,0.00020547,2]
[371536005,1752340261349,-377.28,0.00020547,2]
[371536006,1752340261358,-1969.20307314,0.00020555,3]
[371536007,1752340261367,-27885.29,0.000206,2]
[371536008,1752340261376,-455.26477289,0.00020601,4]
[371536009,1752340261386,-424.26171414,0.00020601,4]
[371536010,1752340261395,-151.0,0.00020719,2]
[371536011,1752340261404,-151.0,0.00020719,2]
[371536012,1752340261413,-151.0,0.00020719,2]
[371536013,1752340261423,-151.0,0.00020719,2]
[371536014,1752340261432,-151.0,0.00020719,2]
[371536015,1752340261441,-151.0,0.00020719,2]
[371536016,1752340261450,-151.0,0.00020719,2]
[371536017,1752340261459,-151.0,0.00020719,2]
[371536018,1752340261468,-151.0,0.00020719,2]
[371536019,1752340261477,-151.0,0.00020719,2]
[371536020,1752340261486,-151.0,0.00020719,2]
[371536021,1752340261495,-151.0,0.00020719,2]
[371536022,1752340261504,-151.0,0.00020719,2]
[371536023,1752340261514,-151.0,0.00020719,2]
[371536024,1752340261524,-151.0,0.00020719,2]
[371536025,1752340261535,-151.0,0.00020719,2]
[371536026,1752340261546,-151.0,0.00020719,2]
[371536027,1752340261556,-165.0,0.00020719,2]
[371536028,1752340261566,-207.4,0.00020719,2]
[371536029,1752340261576,-563.17,0.00020791,2]
[371536030,1752340261586,-1969.20307314,0.00020797,4]
[371536031,1752340261596,-500.0,0.00020814,2]
[371536032,1752340261606,-2000.0,0.00020816,2]
[371536033,1752340261616,-1469.81590477,0.00020816,2]
[371536034,1752340261626,-460.0,0.00020821,2]
[371536035,1752340261636,-460.0,0.00020821,2]
[371536036,1752340261646,-474.05,0.00020821,2]
[371536037,1752340261656,-460.0,0.00020821,2]
[371536038,1752340261666,-478.89,0.00020821,2]
[371536039,1752340261676,-460.0,0.00020821,2]
[371536040,1752340261686,-474.34,0.00020821,2]
[371536041,1752340261695,-2619.32,0.00020821,2]
[371536042,1752340261705,-782.78,0.00020821,2]
[371536043,1752340261715,-460.0,0.00020821,2]
[371536044,1752340261726,-545.43,0.00020821,2]
[371536045,1752340261735,-524.08,0.00020821,2]
[371536046,1752340261745,-4243.61,0.00020821,2]
[371536047,1752340261754,-613.83,0.00020821,2]
[371536048,1752340261764,-460.0,0.00020821,2]
[371536049,1752340261773,-460.0,0.00020821,2]
[371536050,1752340261782,-2647.84,0.00020821,2]
[371536051,1752340261791,-1117.83,0.00020821,2]
[371536052,1752340261801,-577.08,0.00020821,2]
[371536053,1752340261811,-1257.51,0.00020821,2]
[371536054,1752340261820,-460.0,0.00020821,2]
[371536055,1752340261830,-410.72177621,0.00020821,2]
[371536056,1752340261844,-460.0,0.00020821,2]
[371536057,1752340261853,-534.6,0.00020821,2]
[371536058,1752340261863,-431.72,0.00020821,2]
[371536059,1752340261872,-1137.93,0.00020821,2]
[371536060,1752340261881,-1616.2,0.00020821,2]
[371536061,1752340261891,-584.27,0.00020821,2]
[371536062,1752340261900,-460.0,0.00020821,2]
[371536063,1752340261913,-1361.32,0.00020821,2]
[371536064,1752340261924,-1001.32,0.00020821,2]
[371536065,1752340261935,-260.48,0.00020821,2]
[371536066,1752340261945,-691.13,0.00020821,2]
[371536067,1752340261955,-587.01,0.00020821,2]
[371536068,1752340261966,-571.27,0.00020821,2]
[371536069,1752340261977,-2375.75,0.00020821,2]
[371536070,1752340261987,-460.0,0.00020821,2]
[371536071,1752340261998,-460.0,0.00020821,2]
[371536072,1752340262010,-2131.7,0.00020821,2]
[371536073,1752340262021,-460.0,0.00020821,2]
[371536074,1752340262031,-535.14,0.00020821,2]
[371536075,1752340262040,-995.99,0.00020821,2]
[371536076,1752340262050,-473.04,0.00020821,2]
[371536077,1752340262060,-493.09,0.000209,2]
[371536078,1752340262069,-5000.0,0.00020947,2]
[371536079,1752340262079,-500.0,0.00021032,2]
[371536080,1752340262094,-1969.20307314,0.00021038,4]
[371536081,1752340262103,-460.0,0.00021095,2]
[371536082,1752340262113,-460.0,0.00021095,2]
[371536083,1752340262122,-474.05,0.00021095,2]
[371536084,1752340262133,-460.0,0.00021095,2]
[371536085,1752340262142,-478.89,0.00021095,2]
[371536086,1752340262151,-460.0,0.00021095,2]
[371536087,1752340262161,-474.34,0.00021095,2]
[371536088,1752340262171,-2619.32,0.00021095,2]
[371536089,1752340262332,-782.78,0.00021095,2]
[371536090,1752340262345,-460.0,0.00021095,2]
[371536091,1752340262355,-545.43,0.00021095,2]
[371536092,1752340262365,-524.08,0.00021095,2]
[371536093,1752340262375,-4243.61,0.00021095,2]
[371536094,1752340262385,-613.83,0.00021095,2]
[371536095,1752340262395,-460.0,0.00021095,2]
[371536096,1752340262405,-460.0,0.00021095,2]
[371536097,1752340262415,-2647.84,0.00021095,2]
[371536098,1752340262424,-1117.83,0.00021095,2]
[371536099,1752340262434,-577.08,0.00021095,2]
[371536100,1752340262443,-1257.51,0.00021095,2]
[371536101,1752340262453,-460.0,0.00021095,2]
[371536102,1752340262463,-460.0,0.00021095,2]
[371536103,1752340262473,-534.6,0.00021095,2]
[371536104,1752340262482,-1137.93,0.00021095,2]
[371536105,1752340262492,-1616.2,0.00021095,2]
[371536106,1752340262502,-584.27,0.00021095,2]
[371536107,1752340262512,-229.88,0.00021095,2]
[371536108,1752340262521,-1361.32,0.00021095,2]
[371536109,1752340262530,-1001.32,0.00021095,2]
[371536110,1752340262540,-691.13,0.00021095,2]
[371536111,1752340262549,-587.01,0.00021095,2]
[371536112,1752340262559,-571.27,0.00021095,2]
[371536113,1752340262568,-2375.75,0.00021095,2]
[371536114,1752340262578,-460.0,0.00021095,2]
[371536115,1752340262591,-275.37406408,0.00021095,2]
[371536116,1752340262600,-151.0,0.00021095,2]
[371536117,1752340262610,-2131.7,0.00021095,2]
[371536118,1752340262621,-460.0,0.00021095,2]
[371536119,1752340262632,-151.0,0.00021095,2]
[371536120,1752340262642,-995.99,0.00021095,2]
[371536121,1752340262651,-473.04,0.00021095,2]
[371536122,1752340262661,-422.024298,0.00021095,2]
[371536123,1752340262671,-422.024298,0.00021095,2]
[371536124,1752340262680,-1969.20307314,0.00021279,5]
[371536125,1752340262689,-403.0,0.0002128,2]
[371536126,1752340262699,-2500.0,0.00021364,2]
[371536127,1752340262709,-460.0,0.00021369,2]
[371536128,1752340262718,-460.0,0.00021369,2]
[371536129,1752340262727,-474.05,0.00021369,2]
[371536130,1752340262738,-460.0,0.00021369,2]
[371536131,1752340262747,-478.89,0.00021369,2]
[371536132,1752340262756,-224.92668228,0.00021369,2]
[371536133,1752340262766,-474.34,0.00021369,2]
[371536134,1752340262786,-2619.32,0.00021369,2]
[371536135,1752340262796,-782.78,0.00021369,2]
[371536136,1752340262806,-460.0,0.00021369,2]
[371536137,1752340262815,-545.43,0.00021369,2]
[371536138,1752340262826,-524.08,0.00021369,2]
[371536139,1752340262840,-4243.61,0.00021369,2]
[371536140,1752340262849,-613.83,0.00021369,2]
[371536141,1752340262859,-460.0,0.00021369,2]
[371536142,1752340262868,-460.0,0.00021369,2]
[371536143,1752340262878,-2647.84,0.00021369,2]
[371536144,1752340262888,-1117.83,0.00021369,2]
[371536145,1752340262898,-577.08,0.00021369,2]
[371536146,1752340262909,-1257.51,0.00021369,2]
[371536147,1752340262918,-460.0,0.00021369,2]
[371536148,1752340262928,-460.0,0.00021369,2]
[371536149,1752340262938,-534.6,0.00021369,2]
[371536150,1752340262948,-1137.93,0.00021369,2]
[371536151,1752340262958,-1616.2,0.00021369,2]
[371536152,1752340262968,-584.27,0.00021369,2]
[371536153,1752340262979,-1361.32,0.00021369,2]
[371536154,1752340262989,-1001.32,0.00021369,2]
[371536155,1752340262999,-691.13,0.00021369,2]
[371536156,1752340263009,-587.01,0.00021369,2]
[371536157,1752340263019,-571.27,0.00021369,2]
[371536158,1752340263029,-2375.75,0.00021369,2]
[371536159,1752340263040,-460.0,0.00021369,2]
[371536160,1752340263050,-2131.7,0.00021369,2]
[371536161,1752340263060,-460.0,0.00021369,2]
[371536162,1752340263070,-995.99,0.00021369,2]
[371536163,1752340263080,-473.04,0.00021369,2]
[371536164,1752340263092,-1969.20307314,0.00021521,5]
[371536165,1752340263103,-1000.0,0.0002158,2]
[371536166,1752340263113,-460.0,0.00021643,2]
[371536167,1752340263122,-460.0,0.00021643,2]
[371536168,1752340263133,-474.05,0.00021643,2]
[371536169,1752340263142,-460.0,0.00021643,2]
[371536170,1752340263151,-478.89,0.00021643,2]
[371536171,1752340263161,-474.34,0.00021643,2]
[371536172,1752340263171,-29.197278,0.00021643,2]
[371536173,1752340263372,-158.41778119,0.00019173,2]
[371536174,1752340263382,-2590.122722,0.00021643,2]
[371536175,1752340263392,-782.78,0.00021643,2]
[371536176,1752340263401,-460.0,0.00021643,2]
[371536177,1752340263410,-545.43,0.00021643,2]
[371536178,1752340263420,-524.08,0.00021643,2]
[371536179,1752340263430,-4243.61,0.00021643,2]
[371536180,1752340263440,-613.83,0.00021643,2]
[371536181,1752340263450,-235.13,0.00021643,2]
[371536182,1752340263459,-460.0,0.00021643,2]
[371536183,1752340263469,-2647.84,0.00021643,2]
[371536184,1752340263478,-1117.83,0.00021643,2]
[371536185,1752340263488,-577.08,0.00021643,2]
[371536186,1752340263498,-1257.51,0.00021643,2]
[371536187,1752340263507,-460.0,0.00021643,2]
[371536188,1752340263517,-460.0,0.00021643,2]
[371536189,1752340263526,-534.6,0.00021643,2]
[371536190,1752340263536,-1137.93,0.00021643,2]
[371536191,1752340263545,-1011.80456449,0.00021643,2]
[371536192,1752340263557,-491.03021328,0.00021643,2]
[371536193,1752340263899,-460.0,0.00016438,2]
[371536194,1752340263909,-726.78,0.00016438,2]
[371536195,1752340263920,-460.0,0.00016712,2]
[371536196,1752340263930,-726.78,0.00016712,2]
[371536197,1752340263940,-460.0,0.00016986,2]
[371536198,1752340263949,-726.78,0.00016986,2]
[371536199,1752340263959,-460.0,0.0001726,2]
[371536200,1752340263968,-726.78,0.0001726,2]
[371536201,1752340263979,-460.0,0.00017534,2]
[371536202,1752340263989,-460.0,0.00017808,2]
[371536203,1752340263999,-460.0,0.00017808,2]
[371536204,1752340264010,-911.12250854,0.0001792,2]
[371536205,1752340264020,-2050.26,0.00018082,2]
[371536206,1752340264030,-460.0,0.00018082,2]
[371536207,1752340264040,-460.0,0.00018082,2]
[371536208,1752340264050,-460.0,0.00018356,2]
[371536209,1752340264060,-2050.26,0.00018356,2]
[371536210,1752340264070,-460.0,0.0001863,2]
[371536211,1752340264080,-2050.26,0.0001863,2]
[371536212,1752340264093,-460.0,0.00018904,2]
[371536213,1752340264103,-112.34606247,0.00018904,2]
[371536214,1752340264120,-1937.91393753,0.00018904,2]
[371536215,1752340264130,-460.0,0.00019178,2]
[371536216,1752340264142,-460.0,0.00019452,2]
[371536217,1752340264152,-460.0,0.00020273,2]
[371536218,1752340264162,-460.0,0.00020547,2]
[371536219,1752340264172,-310.23640402,0.00020821,2]
[371536220,1752340264182,-113.36522223,0.00021643,2]
[371536221,1752340264194,-584.27,0.00021643,2]
[371536222,1752340264205,-1361.32,0.00021643,2]
[371536223,1752340264216,-1001.32,0.00021643,2]
[371536224,1752340264226,-691.13,0.00021643,2]
[371536225,1752340264237,-587.01,0.00021643,2]
[371536226,1752340264247,-571.27,0.00021643,2]
[371536227,1752340264257,-2375.75,0.00021643,2]
[371536228,1752340264266,-480.28,0.00021643,2]
[371536229,1752340264277,-951.24854261,0.00021643,2]
[371536230,1752340264292,-1180.45145739,0.00021643,2]
[371536231,1752340264302,-194.32,0.00021643,2]
[371536232,1752340264312,-995.99,0.00021643,2]
[371536233,1752340264322,-473.04,0.00021643,2]
[371536234,1752340264331,-647.0,0.00021698,2]
[371536235,1752340264342,-2154.0,0.00021698,2]
[371536236,1752340264352,-151.0,0.00021698,2]
[371536237,1752340264362,-151.0,0.00021698,2]
[371536238,1752340264373,-219.753238,0.00021698,2]
[371536239,1752340264383,-844.75,0.00021736,2]
[371536240,1752340264393,-474.495174,0.00021756,4]
[371536241,1752340264404,-6439.71420359,0.00021761,2]
[371536242,1752340264413,-1969.20307314,0.00021762,5]
[371536243,1752340264423,-151.0,0.000218,3]
[371536244,1752340264432,-4412.0,0.00021818,2]
[371536245,1752340264442,-539.52386784,0.00021845,2]
[371536246,1752340264452,-500.0,0.0002191,2]
[371536247,1752340264461,-3000.0,0.00021912,2]
[371536248,1752340264471,-257.204142,0.00021917,2]
[371536249,1752340264481,-533.15,0.00021917,2]
[371536250,1752340264490,-460.0,0.00021917,2]
[371536251,1752340264500,-474.05,0.00021917,2]
[371536252,1752340264510,-460.0,0.00021917,2]
[371536253,1752340264519,-478.89,0.00021917,2]
[371536254,1752340264529,-474.34,0.00021917,2]
[371536255,1752340264539,-95.04744274,0.00021917,2]
[371536256,1752340264683,-687.73255726,0.00021917,2]
[371536257,1752340264693,-477.16072017,0.00021917,2]
[371536258,1752340264702,-524.08,0.00021917,2]
[371536259,1752340264712,-545.43,0.00021917,2]
[371536260,1752340264722,-634.53835714,0.00021917,2]
[371536261,1752340264738,-3609.07164286,0.00021917,2]
[371536262,1752340264748,-613.83,0.00021917,2]
[371536263,1752340264757,-460.0,0.00021917,2]
[371536264,1752340264767,-2647.84,0.00021917,2]
[371536265,1752340264777,-1117.83,0.00021917,2]
[371536266,1752340264787,-577.08,0.00021917,2]
[371536267,1752340264797,-1257.51,0.00021917,2]
[371536268,1752340264806,-460.0,0.00021917,2]
[371536269,1752340264815,-460.0,0.00021917,2]
[371536270,1752340264826,-534.6,0.00021917,2]
[371536271,1752340264835,-1137.93,0.00021917,2]
[371536272,1752340264845,-1616.2,0.00021917,2]
[371536273,1752340264855,-584.27,0.00021917,2]
[371536274,1752340264865,-1361.32,0.00021917,2]
[371536275,1752340264875,-1001.32,0.00021917,2]
[371536276,1752340264885,-691.13,0.00021917,2]
[371536277,1752340264895,-587.01,0.00021917,2]
[371536278,1752340264905,-571.27,0.00021917,2]
[371536279,1752340264916,-2375.75,0.00021917,2]
[371536280,1752340264927,-2131.7,0.00021917,2]
[371536281,1752340264937,-995.99,0.00021917,2]
[371536282,1752340264947,-473.04,0.00021917,2]
[371536283,1752340264957,-4412.0,0.00021932,2]
[371536284,1752340264967,-800.0,0.00021954,2]
[371536285,1752340264977,-800.0,0.00021958,2]
[371536286,1752340264987,-800.0,0.00021978,2]
[371536287,1752340264997,-800.0,0.00021991,2]
[371536288,1752340265007,-4162.17,0.00022,7]
[371536289,1752340265016,-1969.20307314,0.00022003,6]
[371536290,1752340265026,-800.0,0.00022038,2]
[371536291,1752340265035,-800.0,0.00022068,2]
[371536292,1752340265045,-800.0,0.00022075,2]
[371536293,1752340265055,-215.0738,0.00022088,2]
[371536294,1752340265065,-800.0,0.00022096,2]
[371536295,1752340265074,-6260.83990246,0.000221,2]
[371536296,1752340265090,-6045.78425953,0.000221,2]
[371536297,1752340265392,-460.0,0.00016438,2]
[371536298,1752340265402,-460.0,0.00016438,2]
[371536299,1752340265412,-460.0,0.00016438,2]
[371536300,1752340265422,-460.0,0.00016712,2]
[371536301,1752340265431,-341.5266109,0.00016712,2]
[371536302,1752340265645,-460.0,0.00016438,2]
[371536303,1752340265654,-460.0,0.00016438,2]
[371536304,1752340265664,-118.4733891,0.00016712,2]
[371536305,1752340265674,-460.0,0.00016712,2]
[371536306,1752340265684,-460.0,0.00016986,2]
[371536307,1752340265693,-460.0,0.00016986,2]
[371536308,1752340265704,-460.0,0.0001726,2]
[371536309,1752340265715,-726.78,0.00017534,2]
[371536310,1752340265724,-460.0,0.00017534,2]
[371536311,1752340265735,-726.78,0.00017808,2]
[371536312,1752340265745,-460.0,0.00017808,2]
[371536313,1752340265755,-726.78,0.00018082,2]
[371536314,1752340265765,-726.78,0.00018356,2]
[371536315,1752340265775,-911.12250854,0.00018573,2]
[371536316,1752340265785,-726.78,0.0001863,2]
[371536317,1752340265795,-726.78,0.00018904,2]
[371536318,1752340265805,-2050.26,0.00019178,2]
[371536319,1752340265815,-726.78,0.00019178,2]
[371536320,1752340265827,-911.12250854,0.00019227,2]
[371536321,1752340265839,-2050.26,0.00019452,2]
[371536322,1752340265849,-726.78,0.00019452,2]
[371536323,1752340265859,-2050.26,0.00019726,2]
[371536324,1752340265869,-726.78,0.00019726,2]
[371536325,1752340265878,-2050.26,0.0002,2]
[371536326,1752340265888,-726.78,0.0002,2]
[371536327,1752340265898,-2050.26,0.00020273,2]
[371536328,1752340265908,-726.78,0.00020273,2]
[371536329,1752340265918,-2050.26,0.00020547,2]
[371536330,1752340265927,-726.78,0.00020547,2]
[371536331,1752340265937,-1528.86159382,0.00020821,2]
[371536332,1752340265949,-352.156064,0.00020821,2]
[371536333,1752340265961,-169.24234218,0.00020821,2]
[371536334,1752340265970,-253.50628582,0.00020821,2]
[371536339,1752340372768,1310.4128624,0.00016123,2]
[371536345,1752340459284,541.6050336,0.00016123,2]
[371536348,1752340793902,-300.0,0.00016436,2]
[371536349,1752340793934,-300.0,0.00016437,2]
[371536350,1752340793966,-287.0,0.00016437,2]
[371536351,1752340793995,-1200.0,0.00016437,2]
[371536352,1752340794024,-1200.0,0.00016437,2]
[371536353,1752340794056,-460.0,0.00016438,2]
[371536354,1752340794086,-460.0,0.00016438,2]
[371536355,1752340794116,-460.0,0.00016438,2]
[371536356,1752340794144,-206.0,0.00016438,2]
[371536357,1752340794372,-254.0,0.00016438,2]
[371536358,1752340794403,-460.0,0.00016438,2]
[371536359,1752340794437,-460.0,0.00016438,2]
[371536360,1752340794468,-221.02,0.00016438,2]
[371536361,1752340794500,-460.0,0.00016438,2]
[371536362,1752340794530,-460.0,0.00016438,2]
[371536363,1752340794561,-460.0,0.00016438,2]
[371536364,1752340794590,-460.0,0.00016438,2]
[371536365,1752340794619,-460.0,0.00016438,2]
[371536366,1752340794648,-460.0,0.00016438,2]
[371536367,1752340794676,-460.0,0.00016438,2]
[371536368,1752340794705,-309.96,0.00016438,2]
[371536369,1752340794866,-150.04,0.00016438,2]
[371536370,1752340794897,-460.0,0.00016438,2]
[371536371,1752340794929,-460.0,0.00016438,2]
[371536372,1752340794963,-460.0,0.00016438,2]
[371536373,1752340794994,-460.0,0.00016438,2]
[371536374,1752340795026,-460.0,0.00016438,2]
[371536375,1752340795059,-460.0,0.00016438,2]
[371536376,1752340795091,-460.0,0.00016438,2]
[371536377,1752340795120,-460.0,0.00016438,2]
[371536378,1752340795149,-460.0,0.00016438,2]
[371536379,1752340795177,-460.0,0.00016438,2]
[371536380,1752340795206,-39.92,0.00016438,2]
[371536381,1752340795385,-420.08,0.00016438,2]
[371536382,1752340795414,-460.0,0.00016438,2]
[371536383,1752340795443,-460.0,0.00016438,2]
[371536384,1752340795473,-460.0,0.00016438,2]
[371536385,1752340795504,-460.0,0.00016438,2]
[371536386,1752340795534,-460.0,0.00016438,2]
[371536387,1752340795565,-460.0,0.00016438,2]
[371536388,1752340795595,-460.0,0.00016438,2]
[371536389,1752340795625,-460.0,0.00016438,2]
[371536390,1752340795653,-460.0,0.00016438,2]
[371536391,1752340795684,-419.84,0.00016438,2]
[371536392,1752340835126,-300.0,0.00016437,2]
[371536393,1752340835156,-40.16,0.00016438,2]
[371536394,1752340835187,-460.0,0.00016438,2]
[371536395,1752340835216,-460.0,0.00016438,2]
[371536396,1752340835246,-460.0,0.00016438,2]
[371536397,1752340835276,-460.0,0.00016438,2]
[371536398,1752340835306,-460.0,0.00016438,2]
[371536399,1752340835338,-460.0,0.00016438,2]
[371536400,1752340835371,-460.0,0.00016438,2]
[371536401,1752340835403,-460.0,0.00016438,2]
[371536402,1752340835434,-460.0,0.00016438,2]
[371536403,1752340835463,-460.0,0.00016438,2]
[371536404,1752340835638,-460.0,0.00016438,2]
[371536405,1752340835668,-460.0,0.00016438,2]
[371536406,1752340835697,-460.0,0.00016438,2]
[371536407,1752340835727,-460.0,0.00016438,2]
[371536408,1752340835756,-460.0,0.00016438,2]
[371536409,1752340835785,-460.0,0.00016438,2]
[371536410,1752340835816,-460.0,0.00016438,2]
[371536411,1752340835847,-460.0,0.00016438,2]
[371536412,1752340835877,-460.0,0.00016438,2]
[371536413,1752340835905,-460.0,0.00016438,2]
[371536414,1752340835935,-340.0,0.00016438,2]
[371536415,1752340836089,-120.0,0.00016438,2]
[371536416,1752340836120,-460.0,0.00016438,2]
[371536417,1752340836150,-460.0,0.00016438,2]
[371536418,1752340836180,-460.0,0.00016438,2]
[371536419,1752340836209,-460.0,0.00016438,2]
[371536420,1752340836240,-460.0,0.00016438,2]